[Event "Titled Tuesday Blitz February 21 Early 2023"]
[White "Ivic, Velimir"]
[Black "Souleidis, Georgios"]
[WhiteFideId "950122"]
[BlackFideId "4206827"]
[WhiteElo "2595"]
[BlackElo "2419"]
[Result "1-0"]
[Round "10"]
[TimeControl "180+2"]
[Date "2023.02.21"]
[WhiteClock "0:00:20"]
[BlackClock "0:00:10"]

1. d4 {[%clk 0:02:49]}  Nf6 {[%clk 0:02:57]} 2. c4 {[%clk 0:02:49]}  g6 {[%clk 0:02:57]} 3. Nc3 {[%clk 0:02:49]}  Bg7 {[%clk 0:02:57]} 4. g3 {[%clk 0:02:48]}  O-O {[%clk 0:02:57]} 5. Bg2 {[%clk 0:02:48]}  d6 {[%clk 0:02:58]} 6. Nf3 {[%clk 0:02:49]}  Nc6 {[%clk 0:02:58]} 7. O-O {[%clk 0:02:49]}  e5 {[%clk 0:02:59]} 8. dxe5 {[%clk 0:02:50]}  Nxe5 {[%clk 0:02:59]} 9. Nxe5 {[%clk 0:02:48]}  dxe5 {[%clk 0:03:00]} 10. Bg5 {[%clk 0:02:32]}  Qxd1 {[%clk 0:02:56]} 11. Rfxd1 {[%clk 0:02:32]}  c6 {[%clk 0:02:56]} 12. h3 {[%clk 0:02:30]}  h6 {[%clk 0:02:45]} 13. Be3 {[%clk 0:02:29]}  Be6 {[%clk 0:02:41]} 14. b3 {[%clk 0:02:27]}  Nd7 {[%clk 0:02:16]} 15. Rac1 {[%clk 0:02:24]}  Rfe8 {[%clk 0:02:08]} 16. Na4 {[%clk 0:02:23]}  Bf8 {[%clk 0:02:00]} 17. Rc2 {[%clk 0:02:19]}  Kg7 {[%clk 0:01:02]} 18. Rcd2 {[%clk 0:02:17]}  Nf6 {[%clk 0:00:55]} 19. Bc5 {[%clk 0:02:07]}  Bxc5 {[%clk 0:00:33]} 20. Nxc5 {[%clk 0:02:08]}  Bc8 {[%clk 0:00:33]} 21. Rd6 {[%clk 0:02:04]}  a5 {[%clk 0:00:32]} 22. g4 {[%clk 0:01:59]}  Rb8 {[%clk 0:00:30]} 23. Kh2 {[%clk 0:01:47]}  Ra8 {[%clk 0:00:24]} 24. Kg3 {[%clk 0:01:47]}  Rb8 {[%clk 0:00:24]} 25. e3 {[%clk 0:01:43]}  Ra8 {[%clk 0:00:24]} 26. R1d2 {[%clk 0:01:25]}  Rb8 {[%clk 0:00:23]} 27. f3 {[%clk 0:01:23]}  Ra8 {[%clk 0:00:23]} 28. h4 {[%clk 0:01:23]}  Rb8 {[%clk 0:00:23]} 29. Bf1 {[%clk 0:01:24]}  Ra8 {[%clk 0:00:23]} 30. Bd3 {[%clk 0:01:24]}  Rb8 {[%clk 0:00:23]} 31. Bc2 {[%clk 0:01:24]}  Ra8 {[%clk 0:00:23]} 32. a3 {[%clk 0:01:25]}  Rb8 {[%clk 0:00:23]} 33. Bb1 {[%clk 0:01:25]}  Ra8 {[%clk 0:00:24]} 34. g5 {[%clk 0:01:20]}  hxg5 {[%clk 0:00:23]} 35. hxg5 {[%clk 0:01:21]}  Nh7 {[%clk 0:00:22]} 36. f4 {[%clk 0:01:21]}  exf4+ {[%clk 0:00:22]} 37. exf4 {[%clk 0:01:21]}  Nf8 {[%clk 0:00:22]} 38. Bc2 {[%clk 0:01:16]}  Ne6 {[%clk 0:00:20]} 39. Ne4 {[%clk 0:01:16]}  Rh8 {[%clk 0:00:15]} 40. Bd1 {[%clk 0:00:46]}  Rb8 {[%clk 0:00:14]} 41. Bg4 {[%clk 0:00:44]}  Ra8 {[%clk 0:00:15]} 42. Nf6 {[%clk 0:00:43]}  Nc5 {[%clk 0:00:13]} 43. Bxc8 {[%clk 0:00:24]}  Raxc8 {[%clk 0:00:14]} 44. b4 {[%clk 0:00:25]}  axb4 {[%clk 0:00:15]} 45. axb4 {[%clk 0:00:26]}  Na6 {[%clk 0:00:15]} 46. Rd7 {[%clk 0:00:23]}  Nxb4 {[%clk 0:00:14]} 47. Rxb7 {[%clk 0:00:23]}  c5 {[%clk 0:00:14]} 48. Rdd7 {[%clk 0:00:23]}  Rhf8 {[%clk 0:00:13]} 49. Ng4 {[%clk 0:00:23]}  Nc6 {[%clk 0:00:13]} 50. Nh6 {[%clk 0:00:22]}  Nd4 {[%clk 0:00:09]} 51. Nxf7 {[%clk 0:00:20]}  Nf5+ {[%clk 0:00:09]} 52. Kf3 {[%clk 0:00:19]}  Kg8 {[%clk 0:00:10]} 53. Nh6+ {[%clk 0:00:17]}  Nxh6 {[%clk 0:00:10]} 54. gxh6 {[%clk 0:00:18]}  Rfe8 {[%clk 0:00:09]} 55. Rg7+ {[%clk 0:00:18]}  Kh8 {[%clk 0:00:09]} 56. Rh7+ {[%clk 0:00:19]}  Kg8 {[%clk 0:00:10]} 57. Rbg7+ {[%clk 0:00:20]}  Kf8 {[%clk 0:00:10]} 58. Rh8# {[%clk 0:00:20]} 1-0


[Site "https://www.chess.com"]

[Event "Titled Tuesday Blitz February 21 Early 2023"]
[White "Stribuk, Artiom"]
[Black "Jakubowski, Krzysztof"]
[WhiteFideId "13515659"]
[BlackFideId "1112848"]
[WhiteElo "2378"]
[BlackElo "2486"]
[Result "1-0"]
[Round "10"]
[TimeControl "180+2"]
[Date "2023.02.21"]
[WhiteClock "0:00:04"]
[BlackClock "0:00:02"]

1. d4 {[%clk 0:03:00]}  Nf6 {[%clk 0:02:57]} 2. c4 {[%clk 0:03:01]}  e6 {[%clk 0:02:57]} 3. g3 {[%clk 0:03:01]}  d5 {[%clk 0:02:56]} 4. Bg2 {[%clk 0:03:01]}  Bb4+ {[%clk 0:02:54]} 5. Nd2 {[%clk 0:03:02]}  O-O {[%clk 0:02:53]} 6. Nf3 {[%clk 0:03:03]}  dxc4 {[%clk 0:02:52]} 7. Qc2 {[%clk 0:03:00]}  a5 {[%clk 0:02:49]} 8. a3 {[%clk 0:02:56]}  Bxd2+ {[%clk 0:02:47]} 9. Bxd2 {[%clk 0:02:57]}  b5 {[%clk 0:02:47]} 10. a4 {[%clk 0:02:58]}  c6 {[%clk 0:02:45]} 11. h4 {[%clk 0:02:58]}  Ra6 {[%clk 0:02:36]} 12. h5 {[%clk 0:02:51]}  h6 {[%clk 0:02:31]} 13. g4 {[%clk 0:02:46]}  Nh7 {[%clk 0:02:30]} 14. g5 {[%clk 0:02:15]}  hxg5 {[%clk 0:02:15]} 15. h6 {[%clk 0:02:13]}  g6 {[%clk 0:02:11]} 16. Ne5 {[%clk 0:02:11]}  f5 {[%clk 0:01:34]} 17. Nxg6 {[%clk 0:02:05]}  Rf6 {[%clk 0:01:34]} 18. Ne5 {[%clk 0:02:02]}  Qf8 {[%clk 0:01:33]} 19. b3 {[%clk 0:01:32]}  cxb3 {[%clk 0:01:10]} 20. Qxb3 {[%clk 0:01:33]}  b4 {[%clk 0:01:08]} 21. Rc1 {[%clk 0:01:21]}  Rxh6 {[%clk 0:01:05]} 22. d5 {[%clk 0:00:42]}  Rxh1+ {[%clk 0:00:59]} 23. Bxh1 {[%clk 0:00:42]}  exd5 {[%clk 0:00:48]} 24. Nxc6 {[%clk 0:00:28]}  Nxc6 {[%clk 0:00:35]} 25. Bxd5+ {[%clk 0:00:28]}  Kg7 {[%clk 0:00:34]} 26. Bxc6 {[%clk 0:00:28]}  Qf6 {[%clk 0:00:21]} 27. Bb5 {[%clk 0:00:19]}  Be6 {[%clk 0:00:20]} 28. Qg3 {[%clk 0:00:16]}  Ra7 {[%clk 0:00:19]} 29. Qb8 {[%clk 0:00:15]}  Rf7 {[%clk 0:00:17]} 30. Qa8 {[%clk 0:00:13]}  Qh6 {[%clk 0:00:13]} 31. e3 {[%clk 0:00:10]}  Nf6 {[%clk 0:00:10]} 32. Qxa5 {[%clk 0:00:10]}  Bd5 {[%clk 0:00:09]} 33. Qxb4 {[%clk 0:00:07]}  Qh1+ {[%clk 0:00:09]} 34. Bf1 {[%clk 0:00:07]}  Bg2 {[%clk 0:00:08]} 35. Qb5 {[%clk 0:00:05]}  Rb7 {[%clk 0:00:06]} 36. Qd3 {[%clk 0:00:04]}  Ne4 {[%clk 0:00:04]} 37. Bc3+ {[%clk 0:00:03]}  Kh6 {[%clk 0:00:04]} 38. Bd4 {[%clk 0:00:03]}  Kh5 {[%clk 0:00:03]} 39. Qe2+ {[%clk 0:00:03]}  g4 {[%clk 0:00:04]} 40. a5 {[%clk 0:00:03]}  Re7 {[%clk 0:00:03]} 41. a6 {[%clk 0:00:03]}  Kh4 {[%clk 0:00:03]} 42. a7 {[%clk 0:00:03]}  Re8 {[%clk 0:00:03]} 43. Ra1 {[%clk 0:00:04]}  Ng5 {[%clk 0:00:03]} 44. a8=Q {[%clk 0:00:03]}  Rxa8 {[%clk 0:00:03]} 45. Rxa8 {[%clk 0:00:04]}  Nf3+ {[%clk 0:00:02]} 46. Kd1 {[%clk 0:00:04]} 1-0


[Site "https://www.chess.com"]

[Event "Titled Tuesday Blitz February 21 Early 2023"]
[White "Stijve, Theo"]
[Black "Lagno, Kateryna"]
[WhiteFideId "1331132"]
[BlackFideId "14109336"]
[WhiteElo "2351"]
[BlackElo "2558"]
[Result "0-1"]
[Round "10"]
[TimeControl "180+2"]
[Date "2023.02.21"]
[WhiteClock "0:02:15"]
[BlackClock "0:02:44"]

1. e4 {[%clk 0:03:00]}  e5 {[%clk 0:02:59]} 2. Nf3 {[%clk 0:03:01]}  Nc6 {[%clk 0:03:00]} 3. Bb5 {[%clk 0:03:01]}  a6 {[%clk 0:03:00]} 4. Ba4 {[%clk 0:03:02]}  d6 {[%clk 0:03:00]} 5. d4 {[%clk 0:03:02]}  b5 {[%clk 0:02:51]} 6. Bb3 {[%clk 0:02:56]}  Nxd4 {[%clk 0:02:51]} 7. Nxd4 {[%clk 0:02:51]}  exd4 {[%clk 0:02:52]} 8. Qxd4 {[%clk 0:02:49]}  c5 {[%clk 0:02:52]} 9. Qd5 {[%clk 0:02:34]}  Be6 {[%clk 0:02:50]} 10. Qc6+ {[%clk 0:02:31]}  Bd7 {[%clk 0:02:50]} 11. Bxf7+ {[%clk 0:02:15]}  Kxf7 {[%clk 0:02:50]} 12. Qd5+ {[%clk 0:02:16]}  Be6 {[%clk 0:02:48]} 13. Qh5+ {[%clk 0:02:16]}  g6 {[%clk 0:02:46]} 14. Qe2 {[%clk 0:02:15]}  Bg7 {[%clk 0:02:45]} 15. O-O {[%clk 0:02:15]}  Bc4 {[%clk 0:02:44]} 0-1


[Site "https://www.chess.com"]

[Event "Titled Tuesday Blitz February 21 Early 2023"]
[White "Kvaloy, Aksel Bu"]
[Black "Hasangatin, Ramil"]
[WhiteFideId "1528815"]
[BlackFideId "4122160"]
[WhiteElo "2321"]
[BlackElo "2457"]
[Result "0-1"]
[Round "10"]
[TimeControl "180+2"]
[Date "2023.02.21"]
[WhiteClock "0:00:01"]
[BlackClock "0:00:33"]

1. e4 {[%clk 0:03:00]}  d5 {[%clk 0:03:00]} 2. exd5 {[%clk 0:03:00]}  Qxd5 {[%clk 0:03:01]} 3. Nc3 {[%clk 0:03:01]}  Qd6 {[%clk 0:03:01]} 4. d4 {[%clk 0:03:01]}  Nf6 {[%clk 0:03:01]} 5. Nf3 {[%clk 0:03:01]}  c6 {[%clk 0:03:02]} 6. Ne5 {[%clk 0:03:02]}  Nbd7 {[%clk 0:03:03]} 7. f4 {[%clk 0:03:01]}  Nb6 {[%clk 0:03:01]} 8. g4 {[%clk 0:02:58]}  g6 {[%clk 0:03:00]} 9. g5 {[%clk 0:02:53]}  Nfd5 {[%clk 0:03:00]} 10. Nxd5 {[%clk 0:02:46]}  cxd5 {[%clk 0:02:56]} 11. Bb5+ {[%clk 0:02:44]}  Bd7 {[%clk 0:02:54]} 12. Bxd7+ {[%clk 0:02:38]}  Nxd7 {[%clk 0:02:54]} 13. c3 {[%clk 0:02:37]}  Bg7 {[%clk 0:02:53]} 14. Be3 {[%clk 0:02:34]}  f6 {[%clk 0:02:49]} 15. Nxd7 {[%clk 0:02:30]}  Qxd7 {[%clk 0:02:47]} 16. Qd2 {[%clk 0:02:18]}  Qg4 {[%clk 0:02:42]} 17. h3 {[%clk 0:02:12]}  Qf3 {[%clk 0:02:38]} 18. Rf1 {[%clk 0:02:12]}  Qxh3 {[%clk 0:02:37]} 19. O-O-O {[%clk 0:02:12]}  Qf5 {[%clk 0:02:37]} 20. Rde1 {[%clk 0:02:09]}  O-O-O {[%clk 0:02:36]} 21. Bg1 {[%clk 0:02:05]}  Rd7 {[%clk 0:02:35]} 22. Rf2 {[%clk 0:01:59]}  h5 {[%clk 0:02:34]} 23. Rfe2 {[%clk 0:01:43]}  Re8 {[%clk 0:02:11]} 24. Bf2 {[%clk 0:01:41]}  fxg5 {[%clk 0:01:59]} 25. fxg5 {[%clk 0:01:40]}  e5 {[%clk 0:01:59]} 26. dxe5 {[%clk 0:01:38]}  Rxe5 {[%clk 0:02:00]} 27. Bg3 {[%clk 0:01:29]}  Re4 {[%clk 0:01:57]} 28. Rxe4 {[%clk 0:00:46]}  dxe4 {[%clk 0:01:57]} 29. Qe3 {[%clk 0:00:46]}  Rd3 {[%clk 0:01:48]} 30. Qf4 {[%clk 0:00:40]}  Qxf4+ {[%clk 0:01:42]} 31. Bxf4 {[%clk 0:00:41]}  Kd7 {[%clk 0:01:07]} 32. Rxe4 {[%clk 0:00:40]}  Rf3 {[%clk 0:01:07]} 33. Be5 {[%clk 0:00:09]}  Bxe5 {[%clk 0:00:40]} 34. Rxe5 {[%clk 0:00:10]}  h4 {[%clk 0:00:40]} 35. Re4 {[%clk 0:00:07]}  h3 {[%clk 0:00:40]} 36. Rh4 {[%clk 0:00:07]}  Ke6 {[%clk 0:00:40]} 37. Kd2 {[%clk 0:00:07]}  Kf5 {[%clk 0:00:40]} 38. Ke2 {[%clk 0:00:07]}  Kxg5 {[%clk 0:00:37]} 39. Rh8 {[%clk 0:00:03]}  Rg3 {[%clk 0:00:37]} 40. Kf2 {[%clk 0:00:03]}  Kg4 {[%clk 0:00:33]} 41. Rg8 {[%clk 0:00:02]}  Rg2+ {[%clk 0:00:34]} 42. Kf1 {[%clk 0:00:02]}  g5 {[%clk 0:00:34]} 43. Rg7 {[%clk 0:00:01]}  Rxb2 {[%clk 0:00:33]} 44. Rxb7 {[%clk 0:00:01]}  Rxb7 {[%clk 0:00:33]} 0-1


[Site "https://www.chess.com"]

[Event "Titled Tuesday Blitz February 21 Early 2023"]
[White "Starozhilov, Leonid"]
[Black "Ordekalog"]
[WhiteFideId "14106752"]
[WhiteElo "2313"]
[BlackElo "2560"]
[Result "0-1"]
[Round "10"]
[TimeControl "180+2"]
[Date "2023.02.21"]
[WhiteClock "0:00:02"]
[BlackClock "0:00:09"]

1. e4 {[%clk 0:03:00]}  d5 {[%clk 0:02:57]} 2. Nc3 {[%clk 0:03:00]}  dxe4 {[%clk 0:02:56]} 3. Nxe4 {[%clk 0:03:01]}  Nf6 {[%clk 0:02:55]} 4. Nc3 {[%clk 0:03:00]}  Nc6 {[%clk 0:02:53]} 5. Bb5 {[%clk 0:02:59]}  Bd7 {[%clk 0:02:51]} 6. Nf3 {[%clk 0:02:58]}  a6 {[%clk 0:02:51]} 7. Ba4 {[%clk 0:02:58]}  b5 {[%clk 0:02:50]} 8. Bb3 {[%clk 0:02:57]}  Na5 {[%clk 0:02:49]} 9. Ne5 {[%clk 0:02:53]}  Nxb3 {[%clk 0:02:45]} 10. axb3 {[%clk 0:02:53]}  e6 {[%clk 0:02:44]} 11. O-O {[%clk 0:02:53]}  Bd6 {[%clk 0:02:43]} 12. d4 {[%clk 0:02:53]}  O-O {[%clk 0:02:39]} 13. Bg5 {[%clk 0:02:52]}  Be7 {[%clk 0:02:27]} 14. Qf3 {[%clk 0:02:49]}  h6 {[%clk 0:02:19]} 15. Bh4 {[%clk 0:02:46]}  b4 {[%clk 0:02:13]} 16. Na4 {[%clk 0:02:32]}  Nd5 {[%clk 0:01:56]} 17. Bxe7 {[%clk 0:02:27]}  Qxe7 {[%clk 0:01:56]} 18. Nc5 {[%clk 0:02:26]}  Bb5 {[%clk 0:01:55]} 19. Rfe1 {[%clk 0:02:26]}  Rfd8 {[%clk 0:01:47]} 20. Rad1 {[%clk 0:02:21]}  a5 {[%clk 0:01:40]} 21. c4 {[%clk 0:02:08]}  bxc3 {[%clk 0:01:38]} 22. bxc3 {[%clk 0:02:09]}  Be8 {[%clk 0:01:35]} 23. c4 {[%clk 0:02:01]}  Nb4 {[%clk 0:01:30]} 24. Ned3 {[%clk 0:01:47]}  Bc6 {[%clk 0:01:18]} 25. Qg4 {[%clk 0:01:36]}  Nc2 {[%clk 0:01:12]} 26. Ne5 {[%clk 0:01:30]}  Be8 {[%clk 0:00:55]} 27. Rf1 {[%clk 0:01:27]}  Nxd4 {[%clk 0:00:49]} 28. Nb7 {[%clk 0:01:03]}  Rdb8 {[%clk 0:00:45]} 29. Rxd4 {[%clk 0:00:57]}  Rxb7 {[%clk 0:00:44]} 30. Qg3 {[%clk 0:00:58]}  Rab8 {[%clk 0:00:42]} 31. Rd3 {[%clk 0:00:51]}  f6 {[%clk 0:00:37]} 32. Ng4 {[%clk 0:00:49]}  Kh7 {[%clk 0:00:35]} 33. Re1 {[%clk 0:00:47]}  Bg6 {[%clk 0:00:34]} 34. Rde3 {[%clk 0:00:47]}  e5 {[%clk 0:00:33]} 35. h3 {[%clk 0:00:41]}  Qc5 {[%clk 0:00:29]} 36. Qh4 {[%clk 0:00:34]}  Rxb3 {[%clk 0:00:23]} 37. R3e2 {[%clk 0:00:27]}  Rb1 {[%clk 0:00:22]} 38. Ne3 {[%clk 0:00:24]}  Rxe1+ {[%clk 0:00:21]} 39. Rxe1 {[%clk 0:00:24]}  Rd8 {[%clk 0:00:20]} 40. Qg4 {[%clk 0:00:25]}  Rd4 {[%clk 0:00:20]} 41. Qe6 {[%clk 0:00:23]}  a4 {[%clk 0:00:19]} 42. Ra1 {[%clk 0:00:17]}  a3 {[%clk 0:00:18]} 43. Qa6 {[%clk 0:00:11]}  Rd3 {[%clk 0:00:18]} 44. Nc2 {[%clk 0:00:07]}  Rd2 {[%clk 0:00:15]} 45. Ne3 {[%clk 0:00:07]}  a2 {[%clk 0:00:12]} 46. Rxa2 {[%clk 0:00:06]}  Rd6 {[%clk 0:00:11]} 47. Qb5 {[%clk 0:00:03]}  Qd4 {[%clk 0:00:10]} 48. Kh2 {[%clk 0:00:02]}  Qf4+ {[%clk 0:00:10]} 49. Kg1 {[%clk 0:00:02]}  Rb6 {[%clk 0:00:09]} 0-1


[Site "https://www.chess.com"]

[Event "Titled Tuesday Blitz February 21 Early 2023"]
[White "Papasimakopoulos, Alexandros"]
[Black "Ilinca Ilinca, Felix Antonio"]
[WhiteFideId "4244125"]
[BlackFideId "54764998"]
[WhiteElo "2401"]
[BlackElo "2266"]
[Result "0-1"]
[Round "10"]
[TimeControl "180+2"]
[Date "2023.02.21"]
[WhiteClock "0:00:10"]
[BlackClock "0:00:24"]

1. d4 {[%clk 0:03:00]}  Nf6 {[%clk 0:02:56]} 2. c4 {[%clk 0:03:00]}  c5 {[%clk 0:02:55]} 3. d5 {[%clk 0:03:00]}  b5 {[%clk 0:02:56]} 4. Nf3 {[%clk 0:03:01]}  b4 {[%clk 0:02:51]} 5. b3 {[%clk 0:02:57]}  g6 {[%clk 0:02:49]} 6. Bb2 {[%clk 0:02:58]}  Bg7 {[%clk 0:02:49]} 7. Qc2 {[%clk 0:02:58]}  d6 {[%clk 0:02:48]} 8. Nbd2 {[%clk 0:02:59]}  O-O {[%clk 0:02:49]} 9. h3 {[%clk 0:02:59]}  a5 {[%clk 0:02:49]} 10. e4 {[%clk 0:02:41]}  a4 {[%clk 0:02:12]} 11. Rb1 {[%clk 0:02:41]}  a3 {[%clk 0:01:57]} 12. Ba1 {[%clk 0:02:39]}  e6 {[%clk 0:01:55]} 13. dxe6 {[%clk 0:02:37]}  Bxe6 {[%clk 0:01:52]} 14. Be2 {[%clk 0:02:33]}  Nc6 {[%clk 0:01:49]} 15. O-O {[%clk 0:02:33]}  Re8 {[%clk 0:01:42]} 16. Rbd1 {[%clk 0:02:32]}  Nh5 {[%clk 0:01:35]} 17. Bxg7 {[%clk 0:02:31]}  Kxg7 {[%clk 0:01:34]} 18. Rfe1 {[%clk 0:02:30]}  Qf6 {[%clk 0:01:31]} 19. Bf1 {[%clk 0:02:27]}  Nf4 {[%clk 0:01:28]} 20. h4 {[%clk 0:02:23]}  Bg4 {[%clk 0:01:25]} 21. g3 {[%clk 0:02:02]}  Ne6 {[%clk 0:01:22]} 22. Be2 {[%clk 0:01:39]}  Ncd4 {[%clk 0:01:17]} 23. Qd3 {[%clk 0:01:32]}  Nxe2+ {[%clk 0:01:15]} 24. Rxe2 {[%clk 0:01:30]}  Qc3 {[%clk 0:01:13]} 25. Re3 {[%clk 0:01:28]}  Qb2 {[%clk 0:01:09]} 26. Qxd6 {[%clk 0:01:04]}  Rad8 {[%clk 0:01:05]} 27. Qc6 {[%clk 0:00:54]}  Bxf3 {[%clk 0:01:00]} 28. Rxf3 {[%clk 0:00:53]}  Nd4 {[%clk 0:00:58]} 29. Qf6+ {[%clk 0:00:53]}  Kh6 {[%clk 0:00:47]} 30. Qf4+ {[%clk 0:00:52]}  Kg7 {[%clk 0:00:48]} 31. Qxf7+ {[%clk 0:00:49]}  Kh8 {[%clk 0:00:48]} 32. Rd3 {[%clk 0:00:26]}  Rf8 {[%clk 0:00:43]} 33. Qe7 {[%clk 0:00:21]}  Nc6 {[%clk 0:00:36]} 34. Qxc5 {[%clk 0:00:20]}  Ne5 {[%clk 0:00:31]} 35. Rxd8 {[%clk 0:00:18]}  Rxd8 {[%clk 0:00:30]} 36. Nf1 {[%clk 0:00:18]}  Re8 {[%clk 0:00:25]} 37. Qd4 {[%clk 0:00:13]}  Qxd4 {[%clk 0:00:25]} 38. Rxd4 {[%clk 0:00:13]}  Nf3+ {[%clk 0:00:25]} 39. Kg2 {[%clk 0:00:13]}  Nxd4 {[%clk 0:00:26]} 40. Nd2 {[%clk 0:00:13]}  Rd8 {[%clk 0:00:25]} 41. c5 {[%clk 0:00:13]}  Nc6 {[%clk 0:00:24]} 42. Nc4 {[%clk 0:00:12]}  Rd1 {[%clk 0:00:25]} 43. e5 {[%clk 0:00:13]}  Kg8 {[%clk 0:00:25]} 44. f4 {[%clk 0:00:13]}  Ra1 {[%clk 0:00:24]} 45. Kf3 {[%clk 0:00:13]}  Rxa2 {[%clk 0:00:24]} 46. g4 {[%clk 0:00:13]}  Rb2 {[%clk 0:00:24]} 47. f5 {[%clk 0:00:14]}  Rxb3+ {[%clk 0:00:24]} 48. Ke4 {[%clk 0:00:14]}  Rc3 {[%clk 0:00:25]} 49. Nd2 {[%clk 0:00:11]}  a2 {[%clk 0:00:24]} 50. e6 {[%clk 0:00:11]}  a1=Q {[%clk 0:00:24]} 51. f6 {[%clk 0:00:10]}  Qe1+ {[%clk 0:00:24]} 52. Kf4 {[%clk 0:00:10]}  Qe5# {[%clk 0:00:24]} 0-1


[Site "https://www.chess.com"]

[Event "Titled Tuesday Blitz February 21 Early 2023"]
[White "Shuvalova, Polina"]
[Black "Rottenwohrer Suarez, Juan"]
[WhiteFideId "24171760"]
[BlackFideId "32068182"]
[WhiteElo "2484"]
[BlackElo "2265"]
[Result "1-0"]
[Round "10"]
[TimeControl "180+2"]
[Date "2023.02.21"]
[WhiteClock "0:01:12"]
[BlackClock "0:00:54"]

1. d4 {[%clk 0:03:00]}  Nf6 {[%clk 0:02:58]} 2. c4 {[%clk 0:03:00]}  g6 {[%clk 0:02:59]} 3. Nc3 {[%clk 0:03:00]}  Bg7 {[%clk 0:03:00]} 4. e4 {[%clk 0:03:00]}  d6 {[%clk 0:03:00]} 5. Nf3 {[%clk 0:03:00]}  O-O {[%clk 0:03:00]} 6. Be2 {[%clk 0:03:01]}  e5 {[%clk 0:03:01]} 7. d5 {[%clk 0:03:02]}  a5 {[%clk 0:03:01]} 8. h3 {[%clk 0:03:02]}  Na6 {[%clk 0:03:01]} 9. Bg5 {[%clk 0:03:02]}  h6 {[%clk 0:03:01]} 10. Be3 {[%clk 0:03:03]}  Nh5 {[%clk 0:02:57]} 11. g3 {[%clk 0:02:54]}  Nf6 {[%clk 0:02:51]} 12. Nd2 {[%clk 0:02:54]}  Ne8 {[%clk 0:02:42]} 13. g4 {[%clk 0:02:53]}  f5 {[%clk 0:02:37]} 14. gxf5 {[%clk 0:02:53]}  gxf5 {[%clk 0:02:38]} 15. exf5 {[%clk 0:02:47]}  Bxf5 {[%clk 0:02:36]} 16. Bg4 {[%clk 0:02:24]}  Qd7 {[%clk 0:02:25]} 17. a3 {[%clk 0:02:13]}  Nc5 {[%clk 0:02:24]} 18. Bxc5 {[%clk 0:02:10]}  dxc5 {[%clk 0:02:24]} 19. Nde4 {[%clk 0:02:08]}  b6 {[%clk 0:02:21]} 20. Rg1 {[%clk 0:02:03]}  Nd6 {[%clk 0:02:19]} 21. Qe2 {[%clk 0:01:54]}  Kh8 {[%clk 0:02:18]} 22. O-O-O {[%clk 0:01:50]}  Qc8 {[%clk 0:01:53]} 23. Nxd6 {[%clk 0:01:46]}  cxd6 {[%clk 0:01:53]} 24. Ne4 {[%clk 0:01:46]}  Qd7 {[%clk 0:01:49]} 25. Bxf5 {[%clk 0:01:40]}  Rxf5 {[%clk 0:01:48]} 26. Qg4 {[%clk 0:01:40]}  Rf7 {[%clk 0:01:36]} 27. Qxd7 {[%clk 0:01:36]}  Rxd7 {[%clk 0:01:37]} 28. Rg6 {[%clk 0:01:36]}  Rad8 {[%clk 0:01:14]} 29. Rdg1 {[%clk 0:01:34]}  Rf8 {[%clk 0:01:08]} 30. Kd2 {[%clk 0:01:22]}  Rf3 {[%clk 0:01:01]} 31. R1g3 {[%clk 0:01:17]}  Rxg3 {[%clk 0:00:55]} 32. fxg3 {[%clk 0:01:16]}  Bf8 {[%clk 0:00:54]} 33. Nf6 {[%clk 0:01:12]} 1-0


[Site "https://www.chess.com"]

[Event "Titled Tuesday Blitz February 21 Early 2023"]
[White "Ziatdinov, Raset"]
[Black "Aldokhin, Ivan"]
[WhiteFideId "2015323"]
[BlackFideId "24115720"]
[WhiteElo "2101"]
[BlackElo "2413"]
[Result "0-1"]
[Round "10"]
[TimeControl "180+2"]
[Date "2023.02.21"]
[WhiteClock "0:00:33"]
[BlackClock "0:00:17"]

1. e4 {[%clk 0:02:58]}  c5 {[%clk 0:02:59]} 2. Nc3 {[%clk 0:02:57]}  e6 {[%clk 0:02:59]} 3. g3 {[%clk 0:02:55]}  Nc6 {[%clk 0:02:55]} 4. Bg2 {[%clk 0:02:55]}  g6 {[%clk 0:02:55]} 5. f4 {[%clk 0:02:55]}  d6 {[%clk 0:02:55]} 6. Nf3 {[%clk 0:02:56]}  Bg7 {[%clk 0:02:56]} 7. O-O {[%clk 0:02:56]}  Nge7 {[%clk 0:02:56]} 8. d3 {[%clk 0:02:56]}  Nd4 {[%clk 0:02:54]} 9. Be3 {[%clk 0:02:54]}  O-O {[%clk 0:02:49]} 10. Qd2 {[%clk 0:02:54]}  Bd7 {[%clk 0:02:44]} 11. Rae1 {[%clk 0:02:53]}  b5 {[%clk 0:02:32]} 12. Nh4 {[%clk 0:02:51]}  b4 {[%clk 0:02:29]} 13. Nd1 {[%clk 0:02:51]}  f5 {[%clk 0:02:27]} 14. c3 {[%clk 0:02:31]}  bxc3 {[%clk 0:02:22]} 15. bxc3 {[%clk 0:02:31]}  Ndc6 {[%clk 0:02:09]} 16. Nf2 {[%clk 0:02:15]}  Qa5 {[%clk 0:02:07]} 17. Rc1 {[%clk 0:02:12]}  Rab8 {[%clk 0:02:02]} 18. g4 {[%clk 0:02:11]}  Qa3 {[%clk 0:01:46]} 19. gxf5 {[%clk 0:02:11]}  gxf5 {[%clk 0:01:45]} 20. Rc2 {[%clk 0:02:04]}  Kh8 {[%clk 0:01:22]} 21. Nh1 {[%clk 0:02:04]}  d5 {[%clk 0:01:11]} 22. e5 {[%clk 0:01:58]}  d4 {[%clk 0:01:05]} 23. Bf2 {[%clk 0:01:57]}  Nd5 {[%clk 0:00:58]} 24. c4 {[%clk 0:01:50]}  Ne3 {[%clk 0:00:51]} 25. Bxe3 {[%clk 0:01:51]}  dxe3 {[%clk 0:00:51]} 26. Qxe3 {[%clk 0:01:51]}  Nd4 {[%clk 0:00:47]} 27. Rcf2 {[%clk 0:01:51]}  Bh6 {[%clk 0:00:44]} 28. Ng3 {[%clk 0:01:50]}  Rg8 {[%clk 0:00:42]} 29. Nf3 {[%clk 0:01:44]}  Rg4 {[%clk 0:00:37]} 30. Nxd4 {[%clk 0:01:42]}  cxd4 {[%clk 0:00:33]} 31. Qxd4 {[%clk 0:01:42]}  Ba4 {[%clk 0:00:27]} 32. Bh3 {[%clk 0:01:04]}  Rg6 {[%clk 0:00:25]} 33. Qxa7 {[%clk 0:01:00]}  Rbg8 {[%clk 0:00:25]} 34. Rg2 {[%clk 0:01:00]}  Bf8 {[%clk 0:00:23]} 35. d4 {[%clk 0:00:39]}  Qe3+ {[%clk 0:00:18]} 36. Kh1 {[%clk 0:00:36]}  Bc6 {[%clk 0:00:18]} 37. d5 {[%clk 0:00:34]}  Qxa7 {[%clk 0:00:17]} 38. dxc6 {[%clk 0:00:33]}  Qc5 {[%clk 0:00:17]} 0-1


[Site "https://www.chess.com"]